Workbook

Sheet Introduction
A5: remarks? tony.opsomer@gmail.com | E5: version 2021-12-03
B7: C172 | C7: Weight and balance form
C9: Performance form
A17: Vliegclub Grimbergen BE.DTO.113
A18: download the latest version from https://goahead.classy.be/weight-balance/

Sheet W&B FORM
B1: =Introduction!A5 -> remarks? tony.opsomer@gmail.com | O1: =Introduction!E5 -> version 2021-12-03
B2: Weight and Balance form C172 OO-AWT | P2: BE.DTO.113 | T2: Calculations
H5: Fuel quantity | I5: Weight | J5: Arm | K5: Moment | M5: Form validity checker
H6: [l] | I6: [kg] | J6: [in] | K6: [lbs.in] | M6: Don't forget: always do a manual check on your data!!
B7: Basic empty weight (includes engine oil and unusable fuel) | I7: ='OO-AWT'!E10 -> 677.9719012 | J7: ='OO-AWT'!C11 -> 39.288 | K7: ='OO-AWT'!C12 -> 58722.8354
B8: Usable fuel | D8: mean arm: | E8: 47.81 | F8: inch | I8: =H8*0.72 -> 0 | J8: =IF(E8="SELECT AIRPLANE","SELECT AIRPLANE",E8) -> 47.81 | K8: =IF(E8="SELECT AIRPLANE","SELECT AIRPLANE",I8*2.204623*J8) -> 0 | M8: =IF(H8="","COMPLETE THE FORM",IF(H8>'OO-AWT'!E4,"FUEL TANK OVERFLOW","FUEL QUANTITY WITHIN LIMIT")) -> COMPLETE THE FORM | O8: =IF(OR(H8="",I9="",I10="",I11="",,I12="",I13="",I14=""),"COMPLETE THE FORM",IF(SUM(I8:I14)>'OO-AWT'!E15,"TOO MUCH USEFUL LOAD",IF(SUM(I8:I14)>'OO-AWT'!E16,"TOTAL USEFUL LOAD WITHIN NORMAL CATEGORY LIMIT","TOTAL USEFUL LOAD WITHIN UTILITY CATEGORY"))) -> COMPLETE THE FORM
B9: Pilot | D9: mean arm: | E9: 37 | F9: inch | J9: =E9 -> 37 | K9: =I9*2.204623*J9 -> 0
B10: Front passenger | D10: mean arm: | E10: 37 | F10: inch | J10: 37 | K10: 0
B11: Rear passenger 1 | D11: mean arm: | E11: 73 | F11: inch | J11: 73 | K11: 0
B12: Rear passenger 2 | D12: mean arm: | E12: 73 | F12: inch | J12: 73 | K12: 0
B13: Baggage area 1 | D13: mean arm: | E13: 95 | F13: inch | J13: 95 | K13: 0 | M13: =IF(OR(I13="",I14=""),"COMPLETE THE FORM",IF(I13>'OO-AWT'!E19,"TOO MUCH BAGGAGE IN AREA 1",IF(I14>'OO-AWT'!E20,"TOO MUCH BAGGAGE IN AREA 2",IF(SUM(I13:I14)>'OO-AWT'!E19,"TOO MUCH BAGGAGE IN AREA 1 AND 2","PARTITIONING OF BAGGAGE IN AREAS 1 AND 2 WITHIN LIMITS")))) -> COMPLETE THE FORM
B14: Baggage area 2 | D14: mean arm: | E14: 123 | F14: inch | J14: 123 | K14: 0
B15: RAMP WEIGHT AND MOMENT | H15: =I15*2.204623 ->  | I15: =IF(OR(H8="",I9="",I10="",I11="",,I12="",I13="",I14=""),"COMPLETE THE FORM",SUM(I7:I14)) -> COMPLETE THE FORM | J15: =IF(I15="COMPLETE THE FORM","COMPLETE THE FORM",K15/H15) -> COMPLETE THE FORM | K15: =IF(OR(H8="",I9="",I10="",I11="",,I12="",I13="",I14=""),"COMPLETE THE FORM",SUM(K7:K14)) -> COMPLETE THE FORM | M15: =IF(I15="COMPLETE THE FORM","COMPLETE THE FORM","CHECK RESULTS IN GRAPH BELOW") -> COMPLETE THE FORM
B16: Fuel allowance for engine start, taxi and runup | H16: ='C172 Performance specs'!F58*3.785412 -> 4.1639532 | I16: =H16*0.72 -> 2.998046304 | J16: =E8 -> 47.81 | K16: =I16*2.204623*J16 -> 316.0031514
B17: TAKE-OFF WEIGHT AND MOMENT | H17: =I17*2.204623 ->  | I17: =IF(OR(H8="",I9="",I10="",I11="",,I12="",I13="",I14="",H16=""),"COMPLETE THE FORM",I15-I16) -> COMPLETE THE FORM | J17: =IF(I17="COMPLETE THE FORM","COMPLETE THE FORM",K17/H17) -> COMPLETE THE FORM | K17: =IF(OR(H8="",I9="",I10="",I11="",,I12="",I13="",I14="",H16=""),"COMPLETE THE FORM",K15-K16) -> COMPLETE THE FORM | M17: =IF(I17="COMPLETE THE FORM","COMPLETE THE FORM","CHECK RESULTS IN GRAPH BELOW") -> COMPLETE THE FORM
B18: Total trip time | F18: hh:mm | H18: =(HOUR(E18)*60+MINUTE(E18))/60*'OO-AWT'!E6 -> 0 | I18: =H18*0.72 -> 0 | J18: =E8 -> 47.81 | K18: =I18*2.204623*J18 -> 0 | M18: =IF(OR(H8="",I9="",I10="",I11="",,I12="",I13="",I14="",H16="",E18=""),"COMPLETE THE FORM",IF((H18+H16)>H8,"NOT ENOUGH FUEL TO COMPLETE THE TRIP",IF((H18+H16)>(H8-'OO-AWT'!E6/60*45),"DANGER! DANGER! FUEL RESERVE LESS THAN 45 MIN","TRIP TIME WITHIN LIMIT"))) -> COMPLETE THE FORM
B19: LANDING WEIGHT AND MOMENT | H19: =I19*2.204623 ->  | I19: =IF(OR(H8="",I9="",I10="",I11="",,I12="",I13="",I14="",H16="",E18=""),"COMPLETE THE FORM",IF(M18="TRIP TIME TOO BIG","CHECK TRIP TIME",I17-I18)) -> COMPLETE THE FORM | J19: =IF(I19="COMPLETE THE FORM","COMPLETE THE FORM",IF(I19="CHECK TRIP TIME","CHECK TRIP TIME",K19/H19)) -> COMPLETE THE FORM | K19: =IF(OR(H8="",I9="",I10="",I11="",,I12="",I13="",I14="",H16="",E18=""),"COMPLETE THE FORM",IF(M18="TRIP TIME TOO BIG","CHECK TRIP TIME",K17-K18)) -> COMPLETE THE FORM | M19: =IF(I19="COMPLETE THE FORM","COMPLETE THE FORM",IF(I19="CHECK TRIP TIME","","CHECK RESULTS IN GRAPH BELOW")) -> COMPLETE THE FORM
T28: conversion minutes to hh:mm notation
W29: hh | X29: mm
T30: total minutes | W30: =TRUNC(U30/60,0) -> 0 | X30: =ROUND((U30/60-TRUNC(U30/60))*60,0) -> 0
W32: hh:mm | X32: =TIME(W30,X30,) -> 00:00:00
B48: This document is provided for secondary flightplanning and navigation only. It is the user/pilot's sole responsibility to verify the correctness of all information provided by this sheet.

Sheet Performance FORM
C1: =Introduction!A5 -> remarks? tony.opsomer@gmail.com | I1: =Introduction!E5 -> version 2021-12-03
C2: Performance form C172 OO-AWT | I2: BE.DTO.113 | M2: Calculations
G3: Form validity checker
G4: Don't forget: always do a manual check on your data!!
B5: TAKE-OFF | C5: Take-off weight [kg] | E5: =IF(ISERROR('W&B FORM'!I17*2.204623),"FIRST CALCULATE W&B",'W&B FORM'!I17) -> FIRST CALCULATE W&B | G5: =IF(E5="FIRST CALCULATE W&B","FIRST CALCULATE W&B DATA","") -> FIRST CALCULATE W&B DATA
C6: ICAO airport name
C7: MSL Altitude [ft] | G7: =IF(E7="","COMPLETE THE FORM","AIRPORT ALTITUDE OK") -> COMPLETE THE FORM
C8: QNH [hPa or mbar] | G8: =IF(E8="","COMPLETE THE FORM",IF(OR(E8<960,E8>1100),"INVALID QNH","QNH OK")) -> COMPLETE THE FORM
C9: Pressure altitude [ft] | E9: =IF(OR(E7="",E8=""),"COMPLETE THE FORM",IF(E8>1013,(E7-(E8-1013)*30),(E7+(1013-E8)*30))) -> COMPLETE THE FORM | G9: =IF(OR(E9="",E9="COMPLETE THE FORM"),"COMPLETE THE FORM",IF(E9>3000,"LEANING OF MIXTURE IS RECOMMENDED","LEANING OF MIXTURE NOT RECOMMENDED")) -> COMPLETE THE FORM
C10: OAT Temperature [°C] | G10: =IF(E10="","COMPLETE THE FORM",IF(E10>=40,"TEMPERATURE TOO HIGH","TEMPERATURE OK")) -> COMPLETE THE FORM | M10: Runway type dropdown list items
C11: Density altitude [ft] | E11: =IF(OR(E8="",E7="",E10=""),"COMPLETE THE FORM",E9+120*(E10-(15-(1.98/1000*E9)))) -> COMPLETE THE FORM | M11: DEFINE TYPE
C12: Wind | M12: PAVED
D13: Direction [°] | G13: =IF(E13="","COMPLETE THE FORM",IF(OR(E13<0,E13>359),"INVALID WIND DIRECTION","WIND DIRECTION OK")) -> COMPLETE THE FORM | I13: =IF(OR(E13="",E14="",E16=""),"COMPLETE THE FORM",IF(E14<0,"CHECK WIND VELOCITY",IF(ABS(O17)>=15,"CROSSWIND TOO STRONG",IF(R16="USE OTHER RUNWAY DIRECTION","TOO MUCH TAILWIND, USE OTHER RUNWAY DIRECTION",ROUND(ABS(O16),1)&"kts "&P16&" AND " & ROUND(ABS(O17),1)&"kts "&P17)))) -> COMPLETE THE FORM | M13: GRASS
D14: Velocity [kts] | G14: =IF(E14="","COMPLETE THE FORM",IF(E14<0,"INVALID WIND VELOCITY","WIND VELOCITY OK")) -> COMPLETE THE FORM
C15: Runway | M15: Takeoff wind calculations | R15: change in takeoff distance
D16: Runway | G16: =IF(E16="","COMPLETE THE FORM",IF(OR(E16<0,E16>35),"INVALID QFU","QFU OK")) -> COMPLETE THE FORM | M16: headwind component [kts] | O16: =E14*COS((ABS((E16*10)-E13)*PI()/180)) -> 0 | P16: =IF(O16>=0,"HEADWIND",IF(O16<0,"TAILWIND","")) -> HEADWIND | R16: =IF(O16>=0,O16/9*-0.1,IF(AND(O16<0,O16>=-10),ABS(O16/2*0.1),"USE OTHER RUNWAY DIRECTION")) -> 0
D17: type | E17: 1 | G17: =IF(E17="","",IF(E17=1,"DEFINE TYPE",IF(E17=2,"PAVED",IF(E17=3,"GRASS")))) -> DEFINE TYPE | M17: crosswind component [kts] | O17: =E14*SIN((ABS((E16*10)-E13)*PI()/180)) -> 0 | P17: CROSSWIND
D18: TORA [m] | G18: =IF(E18="","COMPLETE THE FORM",IF(E18<0,"INVALID RUNWAY LENGTH VALUE","RUNWAY LENGTH VALUE OK")) -> COMPLETE THE FORM
C19: Safety margin for takeoff distance | E19: 0.5 | M19: Takeoff calculations
C20: Take-off (flaps 0°, full throttle prior to brake release) | M20: Weight: | N20: =IF(OR(E5="",E5=0,E5="FIRST CALCULATE W&B"),"",E5*2.204623) ->  | O20: lbs | P20: -> taking this (higher) weight from takeoff data: | T20: =IF(N20<=1900,1900,IF(N20<=2100,2100,IF(N20<=2300,2300,IF(N20>2300,"OVERWEIGHT")))) -> OVERWEIGHT | U20: lbs | W20: corresponding speeds
D21: lift off IAS speed [kts] | E21: =IF(ISERROR(Y21),"COMPLETE THE FORM",Y21) -> COMPLETE THE FORM | X21: lift off | Y21: =VLOOKUP($T$20,'C172 Performance specs'!B7:D33,2,FALSE) -> 
D22: IAS speed at 50 ft [kts] | E22: =IF(ISERROR(Y22),"COMPLETE THE FORM",Y22) -> COMPLETE THE FORM | M22: look between PA [ft] | P22: needed value [ft] | X22: at 50 ft | Y22: =VLOOKUP($T$20,'C172 Performance specs'!B8:D34,3,FALSE) -> 
D23: ground roll [m] | E23: =IF(E9="COMPLETE THE FORM","COMPLETE THE FORM",IF(R16="USE OTHER RUNWAY DIRECTION","CHANGE RUNWAY",IF(OR(E9>=8000,E10>=40),"NO DATA AVAILABLE",IF(G17="PAVED",((1+R16)*P89*(1+E19))*0.3048,IF(G17="GRASS",(((1+R16)*P89+(0.15*P89))*(1+E19))*0.3048,"COMPLETE THE FORM"))))) -> COMPLETE THE FORM | M23: =IF(E9<=0,0,LEFT(E9/1000,1)*1000) ->  | N23: =IF(E9<=0,0,LEFT(E9/1000+1,1)*1000) ->  | P23: =E9 -> COMPLETE THE FORM
D24: total to clear 50ft OBS [m] | E24: =IF(E9="COMPLETE THE FORM","COMPLETE THE FORM",IF(R16="USE OTHER RUNWAY DIRECTION","CHANGE RUNWAY",IF(OR(E9>=8000,E10>=40),"NO DATA AVAILABLE",IF(G17="PAVED",((1+R16)*Q89*(1+E19))*0.3048,IF(G17="GRASS",(((1+R16)*Q89+(0.15*P89))*(1+E19))*0.3048,"COMPLETE THE FORM"))))) -> COMPLETE THE FORM | G24: =IF(E9="COMPLETE THE FORM","COMPLETE THE FORM",IF(OR(E9>=8000,E10>=40),"NO DATA AVAILABLE, CHECK P.A. / TEMP",IF(G17="DEFINE TYPE","DEFINE TYPE OF RUNWAY",IF(E18="","COMPLETE THE FORM",IF(E24="CHANGE RUNWAY","TOO MUCH TAILWIND, USE OTHER RUNWAY DIRECTION",IF(E24>E18,"RUNWAY TOO SHORT",IF(E24<=E18,"RUNWAY LENGTH SUFFICIENT"))))))) -> COMPLETE THE FORM | M24: look between temperatures [°C] | P24: needed value [°C]
B25: CRUISE | C25: Cruising weight [kg] | E25: =E5 -> FIRST CALCULATE W&B | M25: =IF(E10<=0,0,LEFT(E10/10,1)*10) -> 0 | N25: =IF(E10<=0,0,LEFT(E10/10+1,1)*10) -> 0 | P25: =E10 -> 0
C26: MSL Cruising altitude [ft] | E26: 2400 | G26: =IF(E26="","COMPLETE THE FORM",IF(E26<=0,"CRUISING ALTITUDE MUST GREATER THAN 0 FT","CRUISING ALTITUDE OK")) -> CRUISING ALTITUDE OK
C27: QNH [hPa or mbar] | E27: 1000 | G27: =IF(E27="","COMPLETE THE FORM",IF(OR(E27<960,E27>1100),"INVALID QNH","QNH OK")) -> QNH OK
C28: Pressure altitude [ft] | E28: =IF(OR(E26="",E27=""),"COMPLETE THE FORM",IF(E27>1013,(E26-(E27-1013)*30),(E26+(1013-E27)*30))) -> 2790 | G28: =IF(OR(E28="",E28="COMPLETE THE FORM"),"COMPLETE THE FORM",IF(E28<0,"INVALID MSL CRUISING ALTITUDE",IF(E28>3000,"LEANING OF MIXTURE RECOMMENDED",IF(OR(E28>12000,E28<2000),"NO DATA FOUND",IF(AND(E28>0,E28<=3000),"LEANING OF MIXTURE NOT RECOMMENDED",))))) -> LEANING OF MIXTURE NOT RECOMMENDED
C29: OAT Temperature at cruising altitude [°C] | E29: 10 | G29: =IF(OR(E29="",E26="",E27=""),"COMPLETE THE FORM",IF(AND(E29<=((15-(1.98/1000*E28))+20),E29>=((15-(1.98/1000*E28))-20)),"TEMPERATURE WITHIN DATA LIMITS","TEMPERATURE OUT OF DATA LIMITS")) -> TEMPERATURE WITHIN DATA LIMITS
C30: Desired %BHP-setting | E30: 1 | G30: =IF(E30=1,"COMPLETE THE FORM",M113) -> COMPLETE THE FORM
C31: Cruise performance
D32: RPM | E32: =IF(OR(E30=1,E29="",E27="",E26=""),"COMPLETE THE FORM",IF(G28="NO DATA FOUND","CHECK CRUISING ALT",IF(OR(M113="%BHP VALUE NOT FOUND IN DATA",ISERROR(R70)),"CHECK %BHP VALUE",IF(ABS(R116-O116)>20,"CHECK TEMPERATURE",R69/100)))) -> COMPLETE THE FORM
D33: KTAS [kts] | E33: =IF(OR(E30=1,E29="",E27="",E26=""),"COMPLETE THE FORM",IF(G28="NO DATA FOUND","CHECK CRUISING ALT",IF(OR(M113="%BHP VALUE NOT FOUND IN DATA",ISERROR(R70)),"CHECK %BHP VALUE",IF(ABS(R116-O116)>20,"CHECK TEMPERATURE",R70-2)))) -> COMPLETE THE FORM
D34: Fuel consumption [l/hr] | E34: =IF(OR(E30=1,E29="",E27="",E26=""),"COMPLETE THE FORM",IF(G28="NO DATA FOUND","CHECK CRUISING ALT",IF(OR(M113="%BHP VALUE NOT FOUND IN DATA",ISERROR(R70)),"CHECK %BHP VALUE",IF(ABS(R116-O116)>20,"CHECK TEMPERATURE",R71)))) -> COMPLETE THE FORM
B35: LANDING | C35: Landing weight [kg] | E35: =IF(ISERROR('W&B FORM'!I19*2.204623),"FIRST CALCULATE W&B",'W&B FORM'!I19) -> FIRST CALCULATE W&B | G35: =IF(E35="FIRST CALCULATE W&B","FIRST CALCULATE W&B DATA","") -> FIRST CALCULATE W&B DATA
C36: ICAO airport name
C37: MSL Altitude [ft] | G37: =IF(E37="","COMPLETE THE FORM","AIRPORT ALTITUDE OK") -> COMPLETE THE FORM
C38: QNH [hPa or mbar] | G38: =IF(E38="","COMPLETE THE FORM",IF(OR(E38<960,E38>1100),"INVALID QNH","QNH OK")) -> COMPLETE THE FORM
C39: Pressure altitude [ft] | E39: =IF(OR(E37="",E38=""),"COMPLETE THE FORM",IF(E38>1013,(E37-(E38-1013)*30),(E37+(1013-E38)*30))) -> COMPLETE THE FORM | G39: =IF(OR(E39="",E39="COMPLETE THE FORM"),"COMPLETE THE FORM",IF(E39>3000,"LEANING OF MIXTURE IS RECOMMENDED","LEANING OF MIXTURE NOT RECOMMENDED")) -> COMPLETE THE FORM
C40: OAT Temperature [°C] | G40: =IF(E40="","COMPLETE THE FORM",IF(E40>=40,"TEMPERATURE TOO HIGH","TEMPERATURE OK")) -> COMPLETE THE FORM
C41: Density altitude [ft] | E41: =IF(OR(E38="",E37="",E40=""),"COMPLETE THE FORM",E39+120*(E40-(15-(1.98/1000*E39)))) -> COMPLETE THE FORM
C42: Wind
D43: Direction [°] | G43: =IF(E43="","COMPLETE THE FORM",IF(OR(E43<0,E43>359),"INVALID WIND DIRECTION","WIND DIRECTION OK")) -> COMPLETE THE FORM | I43: =IF(OR(E43="",E44="",E46=""),"COMPLETE THE FORM",IF(E44<0,"CHECK WIND VELOCITY",IF(ABS(O107)>=15,"CROSSWIND TOO STRONG",IF(R106="USE OTHER RUNWAY DIRECTION","TOO MUCH TAILWIND, USE OTHER RUNWAY DIRECTION",ROUND(ABS(O106),1)&"kts "&P106&" AND " & ROUND(ABS(O107),1)&"kts "&P107)))) -> COMPLETE THE FORM
D44: Velocity [kts] | G44: =IF(E44="","COMPLETE THE FORM",IF(E44<0,"INVALID WIND VELOCITY","WIND VELOCITY OK")) -> COMPLETE THE FORM
C45: Runway
D46: Runway | G46: =IF(E46="","COMPLETE THE FORM",IF(OR(E46<0,E46>35),"INVALID QFU","QFU OK")) -> COMPLETE THE FORM
D47: type | E47: 1 | G47: =IF(E47="","",IF(E47=1,"DEFINE TYPE",IF(E47=2,"PAVED",IF(E47=3,"GRASS")))) -> DEFINE TYPE
D48: LDA [m] | G48: =IF(E48="","COMPLETE THE FORM",IF(E48<0,"INVALID RUNWAY LENGTH VALUE","RUNWAY LENGTH VALUE OK")) -> COMPLETE THE FORM
C49: Safety margin for landing distance | E49: 0.5
C50: Landing (flaps 40°, power off, maximum braking)
D51: landing IAS speed [kts] | E51: 60
D52: ground roll [m] | E52: =IF(E39="COMPLETE THE FORM","COMPLETE THE FORM",IF(R106="USE OTHER RUNWAY DIRECTION","CHANGE RUNWAY",IF(OR(E39>=8000,E40>=40),"NO DATA AVAILABLE",IF(G47="PAVED",((1+R106)*P102*(1+E49))*0.3048,IF(G47="GRASS",(((1+R106)*P102+(0.45*P102))*(1+E49))*0.3048,"COMPLETE THE FORM"))))) -> COMPLETE THE FORM
D53: total to clear 50ft [m] | E53: =IF(E39="COMPLETE THE FORM","COMPLETE THE FORM",IF(R106="USE OTHER RUNWAY DIRECTION","CHANGE RUNWAY",IF(OR(E39>=8000,E40>=40),"NO DATA AVAILABLE",IF(G47="PAVED",((1+R106)*Q102*(1+E49))*0.3048,IF(G47="GRASS",(((1+R106)*Q102+(0.45*P102))*(1+E49))*0.3048,"COMPLETE THE FORM"))))) -> COMPLETE THE FORM | G53: =IF(E39="COMPLETE THE FORM","COMPLETE THE FORM",IF(OR(E39>=8000,E40>=40),"NO DATA AVAILABLE, CHECK P.A. / TEMP",IF(G47="DEFINE TYPE","DEFINE TYPE OF RUNWAY",IF(E48="","COMPLETE THE FORM",IF(E53="CHANGE RUNWAY","TOO MUCH TAILWIND, USE OTHER RUNWAY DIRECTION",IF(E53>E48,"RUNWAY TOO SHORT",IF(E53<=E48,"RUNWAY LENGTH SUFFICIENT"))))))) -> COMPLETE THE FORM
B55: This document is provided for secondary flightplanning and navigation only. It is the user/pilot's sole responsibility to verify the correctness of all information provided by this sheet.
M84: Found & interpolated takeoff values (distances are in FEET) for safety weight of: | S84: =T20 -> OVERWEIGHT | T84: lbs
N85: =M25 -> 0 | P85: =P25 -> 0 | R85: =N25 -> 0
N86: GRND ROLL | O86: TOTAL TO… | P86: GRND ROLL | Q86: TOTAL TO… | R86: GRND ROLL | S86: TOTAL TO…
M87: column index | N87: =2+(M25/10*2) -> 2 | O87: =3+(M25/10*2) -> 3 | R87: =2+(N25/10*2) -> 2 | S87: =3+(N25/10*2) -> 3
M88: =M23 ->  | N88: =VLOOKUP($M88,IF(S84=1900,'C172 Performance specs'!$F$7:$O$15,IF(S84=2100,'C172 Performance specs'!$E$16:$O$24,IF(S84=2300,'C172 Performance specs'!$E$25:$O$33))),'Performance FORM'!N$87,FALSE) ->  | O88: =VLOOKUP($M88,IF(S84=1900,'C172 Performance specs'!$F$7:$O$15,IF(S84=2100,'C172 Performance specs'!$E$16:$O$24,IF(S84=2300,'C172 Performance specs'!$E$25:$O$33))),'Performance FORM'!O$87,FALSE) ->  | R88: =VLOOKUP($M88,IF(S84=1900,'C172 Performance specs'!$F$7:$O$15,IF(S84=2100,'C172 Performance specs'!$E$16:$O$24,IF(S84=2300,'C172 Performance specs'!$E$25:$O$33))),'Performance FORM'!R$87,FALSE) ->  | S88: =VLOOKUP($M88,IF(S84=1900,'C172 Performance specs'!$F$7:$O$15,IF(S84=2100,'C172 Performance specs'!$E$16:$O$24,IF(S84=2300,'C172 Performance specs'!$E$25:$O$33))),'Performance FORM'!S$87,FALSE) -> 
M89: =P23 -> COMPLETE THE FORM | N89: =IF(P23<=0,N88,N88+((N90-N88)*(($M$89-$M$88)/($M$90-$M$88)))) ->  | O89: =IF(P23<=0,O88,O88+((O90-O88)*(($M$89-$M$88)/($M$90-$M$88)))) ->  | P89: =IF(P25<=0,N89,N89+((R89-N89)*((($P$85-$N$85)/($R$85-$N$85))))) ->  | Q89: =IF(P25<=0,O89,O89+((S89-O89)*((($P$85-$N$85)/($R$85-$N$85))))) ->  | R89: =IF(P23<=0,R88,R88+((R90-R88)*(($M$89-$M$88)/($M$90-$M$88)))) ->  | S89: =IF(P23<=0,S88,S88+((S90-S88)*(($M$89-$M$88)/($M$90-$M$88)))) -> 
M90: =N23 ->  | N90: =VLOOKUP($M90,IF(S84=1900,'C172 Performance specs'!$F$7:$O$15,IF(S84=2100,'C172 Performance specs'!$E$16:$O$24,IF(S84=2300,'C172 Performance specs'!$E$25:$O$33))),'Performance FORM'!N$87,FALSE) ->  | O90: =VLOOKUP($M90,IF(S84=1900,'C172 Performance specs'!$F$7:$O$15,IF(S84=2100,'C172 Performance specs'!$E$16:$O$24,IF(S84=2300,'C172 Performance specs'!$E$25:$O$33))),'Performance FORM'!O$87,FALSE) ->  | R90: =VLOOKUP($M90,IF(S84=1900,'C172 Performance specs'!$F$7:$O$15,IF(S84=2100,'C172 Performance specs'!$E$16:$O$24,IF(S84=2300,'C172 Performance specs'!$E$25:$O$33))),'Performance FORM'!R$87,FALSE) ->  | S90: =VLOOKUP($M90,IF(S84=1900,'C172 Performance specs'!$F$7:$O$15,IF(S84=2100,'C172 Performance specs'!$E$16:$O$24,IF(S84=2300,'C172 Performance specs'!$E$25:$O$33))),'Performance FORM'!S$87,FALSE) -> 
M92: Landing calculations
M93: look between PA [ft] | P93: needed value [ft]
M94: =IF(E39<=0,0,LEFT(E39/1000,1)*1000) ->  | N94: =IF(E39<=0,0,LEFT(E39/1000+1,1)*1000) ->  | P94: =E39 -> COMPLETE THE FORM
M95: look between temperatures [°C] | P95: needed value [°C]
M96: =IF(E40<=0,0,LEFT(E40/10,1)*10) -> 0 | N96: =IF(E40<=0,0,LEFT(E40/10+1,1)*10) -> 0 | P96: =E40 -> 0
M97: Found & interpolated landing values (distances are in FEET)
N98: =M96 -> 0 | P98: =P96 -> 0 | R98: =N96 -> 0
N99: GRND ROLL | O99: TOTAL TO… | P99: GRND ROLL | Q99: TOTAL TO… | R99: GRND ROLL | S99: TOTAL TO…
M100: column index | N100: =2+(M96/10*2) -> 2 | O100: =3+(M96/10*2) -> 3 | R100: =2+(N96/10*2) -> 2 | S100: =3+(N96/10*2) -> 3
M101: =M94 ->  | N101: =VLOOKUP($M101,'C172 Performance specs'!$E$44:$O$52,'Performance FORM'!N$100,FALSE) ->  | O101: =VLOOKUP($M101,'C172 Performance specs'!$E$44:$O$52,'Performance FORM'!O$100,FALSE) ->  | R101: =VLOOKUP($M101,'C172 Performance specs'!$E$44:$O$52,'Performance FORM'!R$100,FALSE) ->  | S101: =VLOOKUP($M101,'C172 Performance specs'!$E$44:$O$52,'Performance FORM'!S$100,FALSE) -> 
M102: =P94 -> COMPLETE THE FORM | N102: =IF($P$94<=0,N101,N101+((N103-N101)*(($M$102-$M$101)/($M$103-$M$101)))) ->  | O102: =IF($P$94<=0,O101,O101+((O103-O101)*(($M$102-$M$101)/($M$103-$M$101)))) ->  | P102: =IF(P96<=0,N102,N102+((R102-N102)*((($P$98-$N$98)/($R$98-$N$98))))) ->  | Q102: =IF(P96<=0,O102,O102+((S102-O102)*((($P$98-$N$98)/($R$98-$N$98))))) ->  | R102: =IF($P$94<=0,R101,R101+((R103-R101)*(($M$102-$M$101)/($M$103-$M$101)))) ->  | S102: =IF($P$94<=0,S101,S101+((S103-S101)*(($M$102-$M$101)/($M$103-$M$101)))) -> 
M103: =N94 ->  | N103: =VLOOKUP($M103,'C172 Performance specs'!$E$44:$O$52,'Performance FORM'!N$100,FALSE) ->  | O103: =VLOOKUP($M103,'C172 Performance specs'!$E$44:$O$52,'Performance FORM'!O$100,FALSE) ->  | R103: =VLOOKUP($M103,'C172 Performance specs'!$E$44:$O$52,'Performance FORM'!R$100,FALSE) ->  | S103: =VLOOKUP($M103,'C172 Performance specs'!$E$44:$O$52,'Performance FORM'!S$100,FALSE) -> 
M105: Landing wind calculations | R105: change in landing distance
M106: headwind component [kts] | O106: =E44*COS((ABS((E46*10)-E43)*PI()/180)) -> 0 | P106: =IF(O106>=0,"HEADWIND",IF(O106<0,"TAILWIND","")) -> HEADWIND | R106: =IF(O106>=0,O106/9*-0.1,IF(AND(O106<0,O106>=-10),ABS(O106/2*0.1),"USE OTHER RUNWAY DIRECTION")) -> 0
M107: crosswind component [kts] | O107: =E44*SIN((ABS((E46*10)-E43)*PI()/180)) -> 0 | P107: CROSSWIND

Sheet C172 Performance specs
B2: DATA C172*
B3: * ALL DATA IS BASED ON THE CESSNA SKYHAWK 1976 MODEL 172M
B4: Takeoff distance | C4: (flaps up, full throttle prior to brake release, paved, level, dry runway, zero wind) | O4: DATA FOUND ON PAGE 5-12, 5-13
B5: Weight (lbs) | C5: Takeoff speed (KIAS) | E5: Pressure altitude (ft) | F5: 0°C | H5: 10°C | J5: 20°C | L5: 30°C | N5: 40°C
C6: Lift off | D6: at 50ft | F6: Grnd roll | G6: tot to clear 50ft obs | H6: Grnd roll | I6: tot to clear 50ft obs | J6: Grnd roll | K6: tot to clear 50ft obs | L6: Grnd roll | M6: tot to clear 50ft obs | N6: Grnd roll | O6: tot to clear 50ft obs
B7: 1900 | C7: 47 | D7: 54 | E7: 0 | F7: 505 | G7: 915 | H7: 540 | I7: 975 | J7: 580 | K7: 1035 | L7: 620 | M7: 1105 | N7: 665 | O7: 1175
E8: 1000 | F8: 550 | G8: 995 | H8: 590 | I8: 1060 | J8: 635 | K8: 1130 | L8: 680 | M8: 1205 | N8: 725 | O8: 1280
E9: 2000 | F9: 600 | G9: 1085 | H9: 645 | I9: 1155 | J9: 695 | K9: 1230 | L9: 745 | M9: 1315 | N9: 795 | O9: 1400
E10: 3000 | F10: 660 | G10: 1180 | H10: 710 | I10: 1260 | J10: 760 | K10: 1345 | L10: 815 | M10: 1435 | N10: 870 | O10: 1530
E11: 4000 | F11: 725 | G11: 1290 | H11: 775 | I11: 1380 | J11: 835 | K11: 1475 | L11: 895 | M11: 1575 | N11: 955 | O11: 1680
E12: 5000 | F12: 795 | G12: 1415 | H12: 855 | I12: 1515 | J12: 915 | K12: 1620 | L12: 985 | M12: 1735 | N12: 1055 | O12: 1850
E13: 6000 | F13: 870 | G13: 1555 | H13: 940 | I13: 1670 | J13: 1010 | K13: 1785 | L13: 1080 | M13: 1910 | N13: 1160 | O13: 2045
E14: 7000 | F14: 960 | G14: 1715 | H14: 1035 | I14: 1840 | J14: 1110 | K14: 1975 | L14: 1195 | M14: 2115 | N14: 1280 | O14: 2265
E15: 8000 | F15: 1060 | G15: 1900 | H15: 1140 | I15: 2040 | J15: 1225 | K15: 2190 | L15: 1320 | M15: 2350 | N15: 1415 | O15: 2520
B16: 2100 | C16: 50 | D16: 56 | E16: 0 | F16: 630 | G16: 1130 | H16: 680 | I16: 1210 | J16: 725 | K16: 1290 | L16: 780 | M16: 1375 | N16: 835 | O16: 1465
E17: 1000 | F17: 690 | G17: 1235 | H17: 740 | I17: 1320 | J17: 795 | K17: 1405 | L17: 855 | M17: 1500 | N17: 915 | O17: 1600
E18: 2000 | F18: 755 | G18: 1350 | H18: 810 | I18: 1440 | J18: 870 | K18: 1540 | L18: 935 | M18: 1645 | N18: 1000 | O18: 1755
E19: 3000 | F19: 830 | G19: 1475 | H19: 890 | I19: 1580 | J19: 955 | K19: 1690 | L19: 1025 | M19: 1805 | N19: 1100 | O19: 1930
E20: 4000 | F20: 910 | G20: 1620 | H20: 980 | I20: 1735 | J20: 1050 | K20: 1860 | L20: 1125 | M20: 1990 | N20: 1210 | O20: 2130
E21: 5000 | F21: 1000 | G21: 1780 | H21: 1075 | I21: 1910 | J21: 1155 | K21: 2050 | L21: 1240 | M21: 2195 | N21: 1330 | O21: 2355
E22: 6000 | F22: 1100 | G22: 1965 | H22: 1185 | I22: 2115 | J22: 1275 | K22: 2270 | L22: 1370 | M22: 2435 | N22: 1465 | O22: 2615
E23: 7000 | F23: 1215 | G23: 2180 | H23: 1305 | I23: 2345 | J23: 1405 | K23: 2520 | L23: 1510 | M23: 2715 | N23: 1620 | O23: 2920
E24: 8000 | F24: 1340 | G24: 2425 | H24: 1445 | I24: 2615 | J24: 1555 | K24: 2815 | L24: 1675 | M24: 3040 | N24: 1795 | O24: 3280
B25: 2300 | C25: 52 | D25: 59 | E25: 0 | F25: 775 | G25: 1380 | H25: 835 | I25: 1475 | J25: 895 | K25: 1575 | L25: 960 | M25: 1685 | N25: 1030 | O25: 1795
E26: 1000 | F26: 850 | G26: 1510 | H26: 915 | I26: 1615 | J26: 980 | K26: 1725 | L26: 1050 | M26: 1845 | N26: 1125 | O26: 1970
E27: 2000 | F27: 930 | G27: 1650 | H27: 1000 | I27: 1770 | J27: 1075 | K27: 1895 | L27: 1155 | M27: 2030 | N27: 1235 | O27: 2170
E28: 3000 | F28: 1020 | G28: 1815 | H28: 1100 | I28: 1945 | J28: 1180 | K28: 2085 | L28: 1270 | M28: 2235 | N28: 1360 | O28: 2395
E29: 4000 | F29: 1125 | G29: 2000 | H29: 1210 | I29: 2145 | J29: 1300 | K29: 2305 | L29: 1395 | M29: 2475 | N29: 1495 | O29: 2655
E30: 5000 | F30: 1235 | G30: 2210 | H30: 1330 | I30: 2375 | J30: 1430 | K30: 2555 | L30: 1540 | M30: 2750 | N30: 1650 | O30: 2960
E31: 6000 | F31: 1365 | G31: 2450 | H31: 1470 | I31: 2640 | J31: 1580 | K31: 2850 | L31: 1700 | M31: 3070 | N31: N/A | O31: N/A
E32: 7000 | F32: 1505 | G32: 2730 | H32: 1625 | I32: 2955 | J32: 1750 | K32: 3190 | L32: N/A | M32: N/A | N32: N/A | O32: N/A
E33: 8000 | F33: 1665 | G33: 3065 | H33: 1800 | I33: 3320 | J33: N/A | K33: N/A | L33: N/A | M33: N/A | N33: N/A | O33: N/A
B35: Remarks
B36: 1 | C36: Prior to takeoff from fields above 3000 ft elevation, the mixture should be leaned to give maximum RPM in a full throttle static runup
B37: 2 | C37: Decrease distances by 10% for each 9kts headwind. For operation with tailwinds up to 10kts, increase distances by 10% for each 2 knots
B38: 3 | C38: Where distance value has been deleted, climb performance after lift-off is less than 150fpm at takeoff speed
B39: 4 | C39: For operation on a dry, grass runway, increase distances by 15% of the "ground roll" figure
B41: Landing distance | C41: (flaps 40°, power off, maximum braking, paved, level, dry runway, zero wind) | O41: DATA FOUND ON PAGE 5-21
B42: Weight (lbs) | C42: speed at 50 ft (KIAS) | E42: Pressure altitude (ft) | F42: 0°C | H42: 10°C | J42: 20°C | L42: 30°C | N42: 40°C
F43: Grnd roll | G43: tot to clear 50ft obs | H43: Grnd roll | I43: tot to clear 50ft obs | J43: Grnd roll | K43: tot to clear 50ft obs | L43: Grnd roll | M43: tot to clear 50ft obs | N43: Grnd roll | O43: tot to clear 50ft obs
B44: 2300 | C44: 60 | E44: 0 | F44: 495 | G44: 1205 | H44: 510 | I44: 1235 | J44: 530 | K44: 1265 | L44: 545 | M44: 1295 | N44: 565 | O44: 1330
E45: 1000 | F45: 510 | G45: 1235 | H45: 530 | I45: 1265 | J45: 550 | K45: 1300 | L45: 565 | M45: 1330 | N45: 585 | O45: 1365
E46: 2000 | F46: 530 | G46: 1265 | H46: 550 | I46: 1300 | J46: 570 | K46: 1335 | L46: 590 | M46: 1370 | N46: 610 | O46: 1405
E47: 3000 | F47: 550 | G47: 1300 | H47: 570 | I47: 1335 | J47: 590 | K47: 1370 | L47: 610 | M47: 1405 | N47: 630 | O47: 1440
E48: 4000 | F48: 570 | G48: 1335 | H48: 590 | I48: 1370 | J48: 615 | K48: 1410 | L48: 635 | M48: 1445 | N48: 655 | O48: 1480
E49: 5000 | F49: 590 | G49: 1370 | H49: 615 | I49: 1415 | J49: 635 | K49: 1450 | L49: 655 | M49: 1485 | N49: 680 | O49: 1525
E50: 6000 | F50: 615 | G50: 1415 | H50: 640 | I50: 1455 | J50: 660 | K50: 1490 | L50: 685 | M50: 1535 | N50: 705 | O50: 1570
E51: 7000 | F51: 640 | G51: 1455 | H51: 660 | I51: 1495 | J51: 685 | K51: 1535 | L51: 710 | M51: 1575 | N51: 730 | O51: 1615
E52: 8000 | F52: 665 | G52: 1500 | H52: 690 | I52: 1540 | J52: 710 | K52: 1580 | L52: 735 | M52: 1620 | N52: 760 | O52: 1665
B54: Remarks
B55: 1 | C55: Decrease distances 10% for each 9kts headwind. For operations with tailwind up to 10kts, increase distances by 10% for each 2 kts
B56: 2 | C56: For operation on a dry, grass runway, increase distances by 45% of the "ground roll" figure
B58: Fuel for engine start, taxi and takeoff allowance | F58: 1.1 | G58: US Gal | O58: DATA FOUND ON PAGE 5-15
B60: Cruise performance | C60: (recommended lean mixture, 2300 lbs) | O60: DATA FOUND ON PAGE 5-16
B62: pressure altitude (ft) | C62: RPM | D62: 20°C below standard temp | G62: standard temperature | J62: 20°C above standard temp
D63: %BHP | E63: KTAS | F63: GPH | G63: %BHP | H63: KTAS | I63: GPH | J63: %BHP | K63: KTAS | L63: GPH
B64: 2000 | C64: 2550 | D64: 80 | E64: 114 | F64: 8.8 | G64: 75 | H64: 113 | I64: 8.2 | J64: 71 | K64: 113 | L64: 7.8
C65: 2500 | D65: 76 | E65: 111 | F65: 8.3 | G65: 71 | H65: 111 | I65: 7.8 | J65: 67 | K65: 111 | L65: 7.5
C66: 2400 | D66: 68 | E66: 107 | F66: 7.5 | G66: 64 | H66: 107 | I66: 7.2 | J66: 61 | K66: 106 | L66: 6.9
C67: 2300 | D67: 61 | E67: 102 | F67: 6.9 | G67: 58 | H67: 101 | I67: 6.7 | J67: 55 | K67: 99 | L67: 6.5
C68: 2200 | D68: 55 | E68: 96 | F68: 6.4 | G68: 52 | H68: 95 | I68: 6.2 | J68: 49 | K68: 93 | L68: 6.1
B69: 4000 | C69: 2600 | D69: 80 | E69: 116 | F69: 8.8 | G69: 75 | H69: 116 | I69: 8.3 | J69: 71 | K69: 116 | L69: 7.8
C70: 2500 | D70: 72 | E70: 111 | F70: 7.9 | G70: 68 | H70: 111 | I70: 7.5 | J70: 64 | K70: 110 | L70: 7.2
C71: 2400 | D71: 65 | E71: 107 | F71: 7.3 | G71: 61 | H71: 106 | I71: 6.9 | J71: 58 | K71: 104 | L71: 6.7
C72: 2300 | D72: 58 | E72: 101 | F72: 6.7 | G72: 55 | H72: 100 | I72: 6.5 | J72: 53 | K72: 98 | L72: 6.3
C73: 2200 | D73: 52 | E73: 95 | F73: 6.3 | G73: 49 | H73: 93 | I73: 6.1 | J73: 47 | K73: 92 | L73: 5.9
B74: 6000 | C74: 2650 | D74: 80 | E74: 118 | F74: 8.8 | G74: 75 | H74: 118 | I74: 8.2 | J74: 71 | K74: 118 | L74: 7.8
C75: 2600 | D75: 76 | E75: 116 | F75: 8.3 | G75: 71 | H75: 116 | I75: 7.9 | J75: 68 | K75: 115 | L75: 7.5
C76: 2500 | D76: 69 | E76: 111 | F76: 7.6 | G76: 65 | H76: 110 | I76: 7.2 | J76: 62 | K76: 109 | L76: 7
C77: 2400 | D77: 62 | E77: 106 | F77: 7 | G77: 59 | H77: 104 | I77: 6.7 | J77: 56 | K77: 103 | L77: 6.5
C78: 2300 | D78: 56 | E78: 100 | F78: 6.5 | G78: 53 | H78: 98 | I78: 6.3 | J78: 50 | K78: 97 | L78: 6.1
C79: 2200 | D79: 50 | E79: 94 | F79: 6.1 | G79: 47 | H79: 92 | I79: 5.9 | J79: 45 | K79: 91 | L79: 5.8
B80: 8000 | C80: 2700 | D80: 80 | E80: 120 | F80: 8.8 | G80: 75 | H80: 120 | I80: 8.3 | J80: 71 | K80: 120 | L80: 7.8
C81: 2600 | D81: 72 | E81: 116 | F81: 8 | G81: 68 | H81: 115 | I81: 7.5 | J81: 65 | K81: 114 | L81: 7.3
C82: 2500 | D82: 65 | E82: 111 | F82: 7.3 | G82: 62 | H82: 109 | I82: 7 | J82: 59 | K82: 108 | L82: 6.8
C83: 2400 | D83: 59 | E83: 105 | F83: 6.8 | G83: 56 | H83: 103 | I83: 6.6 | J83: 53 | K83: 101 | L83: 6.3
C84: 2300 | D84: 54 | E84: 99 | F84: 6.4 | G84: 51 | H84: 97 | I84: 6.2 | J84: 48 | K84: 96 | L84: 6
C85: 2200 | D85: 48 | E85: 93 | F85: 6 | G85: 45 | H85: 91 | I85: 5.8 | J85: 43 | K85: 90 | L85: 5.7
B86: 10000 | C86: 2700 | D86: 76 | E86: 120 | F86: 8.4 | G86: 72 | H86: 120 | I86: 7.9 | J86: 68 | K86: 119 | L86: 7.8
C87: 2600 | D87: 69 | E87: 115 | F87: 7.6 | G87: 65 | H87: 114 | I87: 7.3 | J87: 62 | K87: 112 | L87: 7
C88: 2500 | D88: 63 | E88: 110 | F88: 7.1 | G88: 59 | H88: 108 | I88: 6.8 | J88: 56 | K88: 106 | L88: 6.6
C89: 2400 | D89: 57 | E89: 104 | F89: 6.6 | G89: 54 | H89: 102 | I89: 6.4 | J89: 51 | K89: 100 | L89: 6.2
C90: 2300 | D90: 51 | E90: 97 | F90: 6.2 | G90: 48 | H90: 96 | I90: 6 | J90: 46 | K90: 95 | L90: 5.8
C91: 2200 | D91: 46 | E91: 92 | F91: 5.8 | G91: 43 | H91: 90 | I91: 5.7 | J91: 41 | K91: 89 | L91: 5.5
B92: 12000 | C92: 2650 | D92: 69 | E92: 117 | F92: 7.6 | G92: 65 | H92: 116 | I92: 7.3 | J92: 62 | K92: 114 | L92: 7
C93: 2600 | D93: 66 | E93: 114 | F93: 7.4 | G93: 62 | H93: 113 | I93: 7 | J93: 59 | K93: 111 | L93: 6.8
C94: 2500 | D94: 60 | E94: 108 | F94: 6.8 | G94: 57 | H94: 106 | I94: 6.6 | J94: 54 | K94: 105 | L94: 6.4
C95: 2400 | D95: 54 | E95: 102 | F95: 6.4 | G95: 51 | H95: 100 | I95: 6.2 | J95: 49 | K95: 99 | L95: 6
C96: 2300 | D96: 49 | E96: 96 | F96: 6 | G96: 46 | H96: 95 | I96: 5.9 | J96: 43 | K96: 94 | L96: 5.7
C97: 2200 | D97: 44 | E97: 91 | F97: 5.7 | G97: 41 | H97: 89 | I97: 5.5 | J97: 38 | K97: 88 | L97: 5.3

Sheet OO-AWT
B2: DATA OO-AWT
B3: LONG-RANGE FUEL TANKS
B4: Max usable fuel quantity | C4: 48 | D4: US Gal | E4: =C4*3.785412 -> 181.699776 | F4: l
B5: Unusable fuel | C5: 24 | D5: lbs
B6: Max. Fuel flow | C6: =MAX('C172 Performance specs'!F64:F97,'C172 Performance specs'!I64:I97,'C172 Performance specs'!L64:L96,'C172 Performance specs'!L96,'C172 Performance specs'!L96:L97) -> 8.8 | D6: US Gal/hr | E6: =C6*3.785412 -> 33.3116256 | F6: l/u
B7: Max. endurance: | C7: =E4/E6 -> 5.454545455 | D7: uur | E7: =INT(C7)&":"&ROUND((C7-INT(C7))*60,0) -> 5:27
B9: W&B DATA | H9: BASED ON
B10: Empty Weight | C10: 1494.68 | D10: lbs | E10: =C10*0.45359 -> 677.9719012 | F10: kg
B11: Arm | C11: 39.288 | D11: inches
B12: Moment | C12: 58722.8354 | D12: inch.lbs
B14: Max Useful load
B15: normal category | C15: 805.32 | D15: lbs | E15: =C15*0.45359 -> 365.2850988 | F15: kg
B16: utility category | C16: 505.32 | D16: lbs | E16: =C16*0.45359 -> 229.2080988 | F16: kg
B18: Max weight baggage areas
B19: area1 | C19: 120 | D19: lbs | E19: =C19*0.45359 -> 54.4308 | F19: kg
B20: area2 | C20: 50 | D20: lbs | E20: 22.6795 | F20: kg
B22: W&B Center of Gravity limits graph
B23: NORMAL CATEGORY | D23: UTILITY CATEGORY
B24: arm [inches] | C24: weight [lbs] | D24: arm [inches] | E24: weight [lbs]
B25: 35 | C25: 0 | D25: 35 | E25: 0
B26: 35 | C26: 1950 | D26: 35 | E26: 1950
B27: 35.5 | C27: 2000 | D27: 35.5 | E27: 2000
B28: 38.5 | C28: 2300 | D28: 40.5 | E28: 2000
B29: 47.3 | C29: 2300 | D29: 40.5 | E29: 0
B30: 47.3 | C30: 0
